fUST/lending_fUST_20250628
["ID","MTS","AMOUNT","RATE_DAILY","PERIOD"]
[368300002,1751100653174,-460.0,0.00019452,2]
[368300003,1751100653183,-460.0,0.00019726,2]
[368300004,1751100653193,-460.0,0.00019726,2]
[368300005,1751100653202,-460.0,0.0002,2]
[368300006,1751100653211,-460.0,0.0002,2]
[368300007,1751100653220,-151.0,0.00020175,2]
[368300008,1751100653230,-460.0,0.00020273,2]
[368300009,1751100653239,-460.0,0.00020273,2]
[368300010,1751100653248,-151.0,0.00020273,2]
[368300011,1751100653258,-213.87,0.00020547,2]
[368300012,1751100653267,-460.0,0.00020547,2]
[368300013,1751100653276,-151.0,0.00020547,2]
[368300014,1751100653286,-151.0,0.000206,2]
[368300015,1751100653295,-159.62,0.00020821,2]
[368300016,1751100653304,-151.0,0.00020842,2]
[368300017,1751100653313,-151.0,0.00020842,2]
[368300018,1751100653324,-151.0,0.00021282,2]
[368300019,1751100653333,-151.0,0.00021369,2]
[368300020,1751100653343,-151.0,0.00021566,2]
[368300021,1751100653352,-406.0,0.00021931,2]
[368300022,1751100653361,-150.0,0.00021931,2]
[368300023,1751100653370,-294557.34323197,0.00022,2]
[368300024,1751100653771,-580.0,0.00019178,2]
[368300025,1751100653782,-250.6395,0.00019178,2]
[368300026,1751100653797,-209.3605,0.00019178,2]
[368300027,1751100653807,-460.0,0.00019178,2]
[368300028,1751100653817,-243.79264669,0.00019178,2]
[368300037,1751101354601,216.72950792,0.00018072,2]
[368300038,1751101559532,189.63831943,0.00018067,2]
[368300040,1751101643096,-300.0,0.00018163,2]
[368300041,1751101643116,-300.0,0.00018164,2]
[368300042,1751101643137,-82.70585756,0.00018164,2]
[368300043,1751101643486,296.965011,0.00013699,2]
[368300051,1751101764806,165.93352951,0.00018067,2]
[368300057,1751101820249,1573.82176931,0.000181,2]
[368300058,1751101820272,8426.17823069,0.000181,2]
[368300098,1751101832274,-1200.0,0.00018163,2]
[368300100,1751101832284,-300.0,0.00018163,2]
[368300102,1751101832295,-300.0,0.00018163,2]
[368300104,1751101832304,-300.0,0.00018163,2]
[368300106,1751101832314,-1200.0,0.00018164,2]
[368300108,1751101832323,-5087.95624471,0.00018164,2]
[368300115,1751101832377,-44912.04375529,0.00018164,2]
[368300117,1751101832387,-450.0,0.00018164,2]
[368300119,1751101832396,-20063.44528888,0.00018167,2]
[368300121,1751101832408,-4836.55471112,0.00018167,2]
[368300123,1751101832418,-160.0,0.00018173,2]
[368300125,1751101832428,-563.32866023,0.000189,2]
[368300127,1751101832438,-165.93352946,0.00019075,2]
[368300129,1751101832450,-628.24547751,0.000191,2]
[368300132,1751101832459,-234.99068461,0.00019136,2]
[368300133,1751101832469,-226.26843891,0.00019177,2]
[368300135,1751101832479,-540.0,0.00019178,2]
[368300138,1751101832490,-460.0,0.00019178,2]
[368300140,1751101832500,-580.0,0.00019178,2]
[368300142,1751101832510,-460.0,0.00019178,2]
[368300144,1751101832520,-460.0,0.00019178,2]
[368300146,1751101832530,-540.0,0.00019178,2]
[368300148,1751101832540,-540.0,0.00019178,2]
[368300150,1751101832549,-462.98667985,0.00019178,2]
[368300152,1751101832559,-548.35388764,0.00019178,2]
[368300154,1751101832567,-463.82084155,0.00019178,2]
[368300156,1751101832577,-460.0,0.00019178,2]
[368300158,1751101832587,-580.10412807,0.00019178,2]
[368300160,1751101832596,-460.0,0.00019178,2]
[368300162,1751101832606,-460.0,0.00019178,2]
[368300164,1751101832616,-460.0,0.00019178,2]
[368300166,1751101832626,-460.0,0.00019178,2]
[368300168,1751101832635,-460.0,0.00019178,2]
[368300170,1751101832644,-460.0,0.00019178,2]
[368300171,1751101832654,-460.0,0.00019178,2]
[368300173,1751101832663,-293.31805144,0.00019178,2]
[368300176,1751101832674,-460.0,0.00019178,2]
[368300178,1751101832683,-460.0,0.00019178,2]
[368300180,1751101832692,-460.0,0.00019178,2]
[368300181,1751101832701,-460.0,0.00019178,2]
[368300182,1751101832710,-460.0,0.00019178,2]
[368300183,1751101832719,-458.83900975,0.00019178,2]
[368300193,1751101838246,-574.37926467,0.00018163,2]
[368300194,1751101838257,-540.0,0.00018163,2]
[368300195,1751101838266,-451.01804181,0.00018163,2]
[368300196,1751101838275,-322.22200821,0.00018163,2]
[368300197,1751101838284,-206.00625283,0.00018163,2]
[368300198,1751101838301,-293.99374717,0.00018163,2]
[368300199,1751101838310,-371.75413231,0.00018163,2]
[368300200,1751101838319,-500.0,0.00018163,2]
[368300201,1751101838328,-1.16099025,0.00019178,2]
[368300202,1751101838338,-460.0,0.00019178,2]
[368300203,1751101838347,-171.74048495,0.00019178,2]
[368300204,1751101838356,-561.38939196,0.00019178,2]
[368300205,1751101838365,-460.0,0.00019178,2]
[368300206,1751101838375,-460.0,0.00019178,2]
[368300207,1751101838384,-461.98817808,0.00019178,2]
[368300208,1751101838394,-460.0,0.00019178,2]
[368300209,1751101838403,-460.0,0.00019178,2]
[368300210,1751101838413,-460.0,0.00019178,2]
[368300211,1751101838423,-460.0,0.00019178,2]
[368300212,1751101838432,-460.0,0.00019178,2]
[368300213,1751101838444,-461.67682965,0.00019178,2]
[368300214,1751101838453,-460.0,0.00019178,2]
[368300215,1751101838462,-208.13332223,0.00019178,2]
[368300216,1751101838471,-460.0,0.00019178,2]
[368300217,1751101838480,-460.0,0.00019178,2]
[368300218,1751101838490,-460.0,0.00019178,2]
[368300219,1751101838499,-460.0,0.00019178,2]
[368300220,1751101838509,-460.0,0.00019178,2]
[368300221,1751101838520,-460.0,0.00019178,2]
[368300222,1751101838530,-460.0,0.00019178,2]
[368300223,1751101838540,-460.0,0.00019178,2]
[368300224,1751101838549,-460.0,0.00019178,2]
[368300225,1751101838559,-460.0,0.00019178,2]
[368300226,1751101838568,-540.0,0.00019178,2]
[368300227,1751101838578,-460.0,0.00019178,2]
[368300228,1751101838587,-178.32766554,0.00019178,2]
[368300229,1751101838597,-460.0,0.00019178,2]
[368300230,1751101838606,-460.0,0.00019178,2]
[368300231,1751101838615,-460.0,0.00019178,2]
[368300232,1751101838625,-460.0,0.00019178,2]
[368300233,1751101838635,-460.0,0.00019178,2]
[368300234,1751101838645,-540.0,0.00019178,2]
[368300235,1751101838654,-460.0,0.00019178,2]
[368300236,1751101838663,-464.7428032,0.00019178,2]
[368300237,1751101838672,-460.0,0.00019178,2]
[368300238,1751101838682,-460.0,0.00019178,2]
[368300239,1751101838691,-460.0,0.00019178,2]
[368300240,1751101838700,-460.0,0.00019178,2]
[368300241,1751101838710,-580.0,0.00019178,2]
[368300242,1751101838719,-460.0,0.00019178,2]
[368300243,1751101838729,-460.0,0.00019178,2]
[368300244,1751101838739,-460.0,0.00019178,2]
[368300245,1751101838749,-465.01927479,0.00019178,2]
[368300246,1751101838760,-540.0,0.00019178,2]
[368300247,1751101838771,-460.0,0.00019178,2]
[368300248,1751101838781,-540.0,0.00019178,2]
[368300249,1751101838790,-460.0,0.00019178,2]
[368300250,1751101838800,-1286.52,0.00019178,2]
[368300251,1751101838809,-460.0,0.00019178,2]
[368300252,1751101838819,-412.6950431,0.00019178,2]
[368300253,1751101838829,-460.0,0.00019178,2]
[368300254,1751101838839,-460.0,0.00019178,2]
[368300255,1751101838849,-436.12665083,0.00019178,2]
[368300256,1751101838858,-460.0,0.00019178,2]
[368300257,1751101838868,-460.0,0.00019178,2]
[368300258,1751101838878,-460.0,0.00019178,2]
[368300259,1751101838887,-461.73111576,0.00019178,2]
[368300260,1751101838897,-460.0,0.00019178,2]
[368300261,1751101838906,-461.21557875,0.00019178,2]
[368300262,1751101838916,-460.0,0.00019178,2]
[368300263,1751101838925,-460.0,0.00019178,2]
[368300264,1751101838935,-460.0,0.00019178,2]
[368300265,1751101838944,-460.0,0.00019178,2]
[368300266,1751101838953,-460.0,0.00019178,2]
[368300267,1751101838963,-460.0,0.00019178,2]
[368300268,1751101838972,-540.0,0.00019178,2]
[368300269,1751101838981,-540.0,0.00019178,2]
[368300270,1751101838991,-460.0,0.00019178,2]
[368300271,1751101839002,-460.0,0.00019178,2]
[368300272,1751101839013,-460.0,0.00019178,2]
[368300273,1751101839023,-460.0,0.00019178,2]
[368300274,1751101839032,-460.0,0.00019178,2]
[368300275,1751101839042,-460.0,0.00019178,2]
[368300276,1751101839051,-460.0,0.00019178,2]
[368300277,1751101839061,-460.0,0.00019178,2]
[368300278,1751101839071,-460.0,0.00019178,2]
[368300279,1751101839080,-460.0,0.00019178,2]
[368300280,1751101839090,-460.0,0.00019178,2]
[368300281,1751101839099,-460.0,0.00019178,2]
[368300282,1751101839108,-460.0,0.00019178,2]
[368300283,1751101839118,-500.0,0.00019178,2]
[368300284,1751101839128,-525.44,0.00019178,2]
[368300285,1751101839138,-460.0,0.00019178,2]
[368300286,1751101839147,-460.0,0.00019178,2]
[368300287,1751101839158,-460.0,0.00019178,2]
[368300288,1751101839167,-460.0,0.00019178,2]
[368300289,1751101839177,-460.0,0.00019178,2]
[368300290,1751101839186,-460.0,0.00019178,2]
[368300291,1751101839195,-461.16994454,0.00019178,2]
[368300292,1751101839205,-460.0,0.00019178,2]
[368300293,1751101839214,-460.0,0.00019178,2]
[368300294,1751101839223,-163.68605377,0.00019178,2]
[368300295,1751101839233,-432.40886648,0.00019178,2]
[368300296,1751101839243,-829.97,0.00019178,2]
[368300297,1751101839253,-460.0,0.00019178,2]
[368300298,1751101839262,-460.0,0.00019178,2]
[368300299,1751101839271,-460.0,0.00019178,2]
[368300300,1751101839281,-460.0,0.00019178,2]
[368300301,1751101839290,-460.0,0.00019178,2]
[368300302,1751101839300,-460.0,0.00019178,2]
[368300303,1751101839310,-293.33885912,0.00019178,2]
[368300304,1751101839319,-460.0,0.00019178,2]
[368300305,1751101839328,-460.0,0.00019178,2]
[368300306,1751101839337,-460.0,0.00019178,2]
[368300307,1751101839346,-460.0,0.00019178,2]
[368300308,1751101839356,-460.0,0.00019178,2]
[368300309,1751101839365,-460.0,0.00019178,2]
[368300310,1751101839375,-460.0,0.00019178,2]
[368300311,1751101839384,-460.0,0.00019178,2]
[368300312,1751101839394,-437.67006083,0.00019178,2]
[368300313,1751101839405,-460.0,0.00019178,2]
[368300314,1751101839414,-460.0,0.00019178,2]
[368300315,1751101839423,-267.47434019,0.00019178,2]
[368300316,1751101839433,-460.0,0.00019178,2]
[368300317,1751101839446,-460.0,0.00019178,2]
[368300318,1751101839456,-540.0,0.00019178,2]
[368300319,1751101839465,-460.0,0.00019178,2]
[368300320,1751101839475,-540.0,0.00019178,2]
[368300321,1751101839486,-500.0,0.00019178,2]
[368300322,1751101839495,-500.0,0.00019178,2]
[368300323,1751101839504,-500.0,0.00019178,2]
[368300324,1751101839516,-172.01664397,0.00019178,2]
[368300325,1751101839525,-460.0,0.00019178,2]
[368300326,1751101839535,-500.0,0.00019178,2]
[368300327,1751101839544,-460.0,0.00019178,2]
[368300328,1751101839554,-460.0,0.00019178,2]
[368300329,1751101839563,-460.0,0.00019178,2]
[368300330,1751101839573,-467.72305855,0.00019178,2]
[368300331,1751101839582,-460.0,0.00019178,2]
[368300332,1751101839591,-473.12,0.00019178,2]
[368300333,1751101839602,-460.0,0.00019178,2]
[368300334,1751101839611,-460.0,0.00019178,2]
[368300335,1751101839620,-460.0,0.00019178,2]
[368300336,1751101839630,-540.0,0.00019178,2]
[368300337,1751101839639,-460.0,0.00019178,2]
[368300338,1751101839648,-460.0,0.00019178,2]
[368300339,1751101839658,-460.0,0.00019178,2]
[368300340,1751101839667,-460.0,0.00019178,2]
[368300341,1751101839677,-460.0,0.00019178,2]
[368300342,1751101839686,-460.0,0.00019178,2]
[368300343,1751101839695,-460.0,0.00019178,2]
[368300344,1751101839706,-460.0,0.00019178,2]
[368300345,1751101839716,-460.0,0.00019178,2]
[368300346,1751101839726,-460.0,0.00019178,2]
[368300347,1751101839736,-460.0,0.00019178,2]
[368300348,1751101839746,-577.44,0.00019178,2]
[368300349,1751101839756,-460.0,0.00019178,2]
[368300350,1751101839765,-162.44540029,0.00019178,2]
[368300351,1751101839774,-460.0,0.00019178,2]
[368300352,1751101839783,-1470.22,0.00019178,2]
[368300353,1751101839793,-460.0,0.00019178,2]
[368300354,1751101839803,-460.0,0.00019178,2]
[368300355,1751101839813,-460.0,0.00019178,2]
[368300357,1751101839823,-460.0,0.00019178,2]
[368300358,1751101839833,-889.79,0.00019178,2]
[368300359,1751101839842,-460.0,0.00019178,2]
[368300360,1751101839852,-461.63871391,0.00019178,2]
[368300361,1751101839861,-460.0,0.00019178,2]
[368300362,1751101839870,-978.04,0.00019178,2]
[368300363,1751101839879,-460.0,0.00019178,2]
[368300364,1751101839888,-500.0,0.00019178,2]
[368300365,1751101839898,-390.0,0.00019178,2]
[368300366,1751101839907,-460.0,0.00019178,2]
[368300367,1751101839916,-460.0,0.00019178,2]
[368300368,1751101839926,-460.0,0.00019178,2]
[368300369,1751101839935,-460.0,0.00019178,2]
[368300370,1751101839944,-460.0,0.00019178,2]
[368300371,1751101839957,-460.0,0.00019178,2]
[368300372,1751101839966,-2213.07,0.00019178,2]
[368300373,1751101839976,-240.60198954,0.00019178,2]
[368300374,1751101839985,-568.78,0.00019178,2]
[368300375,1751101839994,-540.0,0.00019178,2]
[368300376,1751101840003,-549.46291906,0.00019178,2]
[368300377,1751101840012,-585.06,0.00019178,2]
[368300378,1751101840021,-461.10861081,0.00019178,2]
[368300379,1751101840030,-2512.6,0.00019178,2]
[368300380,1751101840039,-460.0,0.00019178,2]
[368300381,1751101840049,-460.0,0.00019178,2]
[368300382,1751101840058,-595.83,0.00019178,2]
[368300383,1751101840067,-460.0,0.00019178,2]
[368300384,1751101840077,-460.0,0.00019178,2]
[368300385,1751101840086,-460.0,0.00019178,2]
[368300386,1751101840096,-460.0,0.00019178,2]
[368300387,1751101840105,-460.0,0.00019178,2]
[368300388,1751101840115,-460.0,0.00019178,2]
[368300389,1751101840125,-460.0,0.00019178,2]
[368300390,1751101840134,-460.0,0.00019178,2]
[368300391,1751101840145,-460.0,0.00019178,2]
[368300392,1751101840154,-460.0,0.00019178,2]
[368300393,1751101840164,-552.07,0.00019178,2]
[368300394,1751101840173,-500.0,0.00019178,2]
[368300395,1751101840183,-460.0,0.00019178,2]
[368300397,1751101840192,-865.39,0.00019178,2]
[368300398,1751101840202,-528.96,0.00019178,2]
[368300399,1751101840211,-460.0,0.00019178,2]
[368300400,1751101840220,-460.0,0.00019178,2]
[368300401,1751101840230,-460.0,0.00019178,2]
[368300402,1751101840240,-259.00043933,0.00019178,2]
[368300403,1751101840249,-460.0,0.00019178,2]
[368300404,1751101840258,-2384.46,0.00019178,2]
[368300405,1751101840268,-540.0,0.00019178,2]
[368300406,1751101840277,-460.0,0.00019178,2]
[368300407,1751101840287,-903.23,0.00019178,2]
[368300408,1751101840296,-460.0,0.00019178,2]
[368300409,1751101840305,-460.0,0.00019178,2]
[368300410,1751101840314,-460.0,0.00019178,2]
[368300411,1751101840323,-460.0,0.00019178,2]
[368300412,1751101840333,-460.0,0.00019178,2]
[368300413,1751101840342,-460.0,0.00019178,2]
[368300414,1751101840351,-2847.7,0.00019178,2]
[368300415,1751101840360,-460.0,0.00019178,2]
[368300416,1751101840370,-186.54167112,0.00019178,2]
[368300417,1751101840387,-498.14832888,0.00019178,2]
[368300418,1751101840396,-1985.76,0.00019178,2]
[368300419,1751101840405,-460.0,0.00019178,2]
[368300420,1751101840414,-500.0,0.00019178,2]
[368300421,1751101840424,-460.0,0.00019178,2]
[368300422,1751101840433,-500.0,0.00019178,2]
[368300423,1751101840447,-500.0,0.00019178,2]
[368300424,1751101840456,-460.0,0.00019178,2]
[368300425,1751101840466,-2316.93,0.00019178,2]
[368300426,1751101840476,-460.0,0.00019178,2]
[368300427,1751101840485,-460.0,0.00019178,2]
[368300428,1751101840495,-460.0,0.00019178,2]
[368300429,1751101840504,-500.0,0.00019178,2]
[368300430,1751101840513,-500.0,0.00019178,2]
[368300431,1751101840523,-500.0,0.00019178,2]
[368300432,1751101840532,-587.06,0.00019178,2]
[368300433,1751101840542,-540.0,0.00019178,2]
[368300434,1751101840551,-460.0,0.00019178,2]
[368300435,1751101840561,-460.0,0.00019178,2]
[368300436,1751101840571,-460.0,0.00019178,2]
[368300437,1751101840580,-460.0,0.00019178,2]
[368300438,1751101840590,-460.0,0.00019178,2]
[368300439,1751101840599,-460.0,0.00019178,2]
[368300440,1751101840609,-460.0,0.00019178,2]
[368300441,1751101840619,-509.86,0.00019178,2]
[368300442,1751101840629,-3306.74,0.00019178,2]
[368300443,1751101840638,-460.0,0.00019178,2]
[368300444,1751101840648,-696.01,0.00019178,2]
[368300445,1751101840658,-540.0,0.00019178,2]
[368300446,1751101840667,-540.0,0.00019178,2]
[368300447,1751101840676,-460.0,0.00019178,2]
[368300448,1751101840685,-460.0,0.00019178,2]
[368300449,1751101840694,-460.0,0.00019178,2]
[368300450,1751101840703,-1354.21,0.00019178,2]
[368300451,1751101840713,-460.0,0.00019178,2]
[368300452,1751101840722,-1447.26,0.00019178,2]
[368300453,1751101840731,-460.0,0.00019178,2]
[368300454,1751101840741,-460.0,0.00019178,2]
[368300455,1751101840750,-351.62,0.00019178,2]
[368300456,1751101840759,-954.54,0.00019178,2]
[368300457,1751101840769,-460.0,0.00019178,2]
[368300458,1751101840778,-540.0,0.00019178,2]
[368300459,1751101840788,-460.0,0.00019178,2]
[368300460,1751101840797,-448.43126466,0.00019178,2]
[368300461,1751101840807,-460.0,0.00019178,2]
[368300462,1751101840817,-460.0,0.00019178,2]
[368300463,1751101840826,-460.0,0.00019178,2]
[368300464,1751101840835,-507.43720755,0.00019178,2]
[368300465,1751101840845,-563.72,0.00019178,2]
[368300466,1751101840854,-477.63,0.00019178,2]
[368300467,1751101840863,-460.0,0.00019178,2]
[368300468,1751101840873,-460.0,0.00019178,2]
[368300469,1751101840882,-460.0,0.00019178,2]
[368300470,1751101840891,-460.0,0.00019178,2]
[368300471,1751101840900,-521.18,0.00019178,2]
[368300472,1751101840910,-540.0,0.00019178,2]
[368300473,1751101840919,-460.0,0.00019178,2]
[368300474,1751101840928,-460.0,0.00019178,2]
[368300475,1751101840937,-460.0,0.00019178,2]
[368300476,1751101840946,-818.33,0.00019178,2]
[368300477,1751101840955,-530.86,0.00019178,2]
[368300478,1751101840965,-460.0,0.00019178,2]
[368300479,1751101840974,-460.0,0.00019178,2]
[368300480,1751101840983,-460.0,0.00019178,2]
[368300481,1751101840992,-460.0,0.00019178,2]
[368300482,1751101841002,-277.956898,0.00019178,2]
[368300483,1751101841011,-460.0,0.00019452,2]
[368300484,1751101841020,-460.0,0.00019452,2]
[368300485,1751101841031,-460.0,0.00019452,2]
[368300486,1751101841040,-461.4650271,0.00019452,2]
[368300487,1751101841049,-460.0,0.00019452,2]
[368300488,1751101841060,-460.0,0.00019452,2]
[368300489,1751101841069,-460.0,0.00019452,2]
[368300490,1751101841078,-460.0,0.00019452,2]
[368300491,1751101841090,-460.0,0.00019452,2]
[368300492,1751101841099,-460.0,0.00019452,2]
[368300493,1751101841108,-460.0,0.00019452,2]
[368300494,1751101841118,-460.0,0.00019452,2]
[368300495,1751101841127,-460.0,0.00019452,2]
[368300496,1751101841138,-460.0,0.00019452,2]
[368300497,1751101841148,-460.0,0.00019452,2]
[368300498,1751101841157,-460.0,0.00019452,2]
[368300499,1751101841166,-460.0,0.00019452,2]
[368300500,1751101841176,-460.0,0.00019452,2]
[368300501,1751101841186,-460.0,0.00019452,2]
[368300502,1751101841195,-460.0,0.00019452,2]
[368300503,1751101841205,-460.0,0.00019452,2]
[368300504,1751101841214,-455.13520889,0.00019452,2]
[368300505,1751101841223,-454.0,0.00019452,2]
[368300506,1751101841232,-460.0,0.00019452,2]
[368300507,1751101841241,-460.0,0.00019452,2]
[368300508,1751101841371,-460.0,0.00019452,2]
[368300509,1751101841381,-1286.52,0.00019452,2]
[368300510,1751101841390,-460.0,0.00019452,2]
[368300511,1751101841400,-400.81107327,0.00019452,2]
[368300512,1751101841409,-460.0,0.00019452,2]
[368300513,1751101841419,-460.0,0.00019452,2]
[368300514,1751101841428,-580.0,0.00019452,2]
[368300515,1751101841439,-460.0,0.00019452,2]
[368300516,1751101841450,-580.0,0.00019452,2]
[368300517,1751101841459,-156.4,0.00019452,2]
[368300518,1751101841468,-540.0,0.00019452,2]
[368300519,1751101841478,-460.0,0.00019452,2]
[368300520,1751101841489,-540.91616731,0.00019452,2]
[368300521,1751101841499,-500.0,0.00019452,2]
[368300522,1751101841508,-460.0,0.00019452,2]
[368300523,1751101841519,-525.44,0.00019452,2]
[368300524,1751101841529,-463.04890327,0.00019452,2]
[368300525,1751101841540,-460.0,0.00019452,2]
[368300526,1751101841550,-460.0,0.00019452,2]
[368300527,1751101841560,-460.0,0.00019452,2]
[368300528,1751101841569,-460.0,0.00019452,2]
[368300529,1751101841579,-829.97,0.00019452,2]
[368300530,1751101841588,-540.0,0.00019452,2]
[368300531,1751101841597,-460.0,0.00019452,2]
[368300532,1751101841607,-580.0,0.00019452,2]
[368300533,1751101841616,-460.0,0.00019452,2]
[368300534,1751101841626,-260.47273687,0.00019452,2]
[368300535,1751101841636,-580.0,0.00019452,2]
[368300536,1751101841646,-460.0,0.00019452,2]
[368300537,1751101841656,-460.0,0.00019452,2]
[368300538,1751101841666,-460.0,0.00019452,2]
[368300539,1751101841675,-460.0,0.00019452,2]
[368300540,1751101841685,-540.0,0.00019452,2]
[368300541,1751101841694,-460.0,0.00019452,2]
[368300542,1751101841703,-460.0,0.00019452,2]
[368300543,1751101841713,-460.0,0.00019452,2]
[368300544,1751101841722,-460.0,0.00019452,2]
[368300545,1751101841732,-460.0,0.00019452,2]
[368300546,1751101841741,-231.56164127,0.00019452,2]
[368300547,1751101841750,-210.68688171,0.00019452,2]
[368300548,1751101841759,-460.0,0.00019452,2]
[368300549,1751101841768,-460.0,0.00019452,2]
[368300550,1751101841778,-460.0,0.00019452,2]
[368300551,1751101841787,-577.44,0.00019452,2]
[368300552,1751101841796,-460.0,0.00019452,2]
[368300553,1751101841806,-1470.22,0.00019452,2]
[368300554,1751101841815,-460.0,0.00019452,2]
[368300555,1751101841825,-460.0,0.00019452,2]
[368300556,1751101841834,-460.0,0.00019452,2]
[368300557,1751101841843,-889.79,0.00019452,2]
[368300558,1751101841853,-460.0,0.00019452,2]
[368300559,1751101841862,-978.04,0.00019452,2]
[368300560,1751101841871,-460.0,0.00019452,2]
[368300561,1751101841880,-460.0,0.00019452,2]
[368300562,1751101841889,-460.0,0.00019452,2]
[368300563,1751101841899,-540.0,0.00019452,2]
[368300564,1751101841908,-460.0,0.00019452,2]
[368300565,1751101841918,-460.0,0.00019452,2]
[368300566,1751101841928,-2213.07,0.00019452,2]
[368300567,1751101841937,-568.78,0.00019452,2]
[368300568,1751101841946,-585.06,0.00019452,2]
[368300569,1751101841956,-2512.6,0.00019452,2]
[368300570,1751101841966,-460.0,0.00019452,2]
[368300571,1751101841978,-595.83,0.00019452,2]
[368300572,1751101841988,-460.0,0.00019452,2]
[368300573,1751101841998,-460.0,0.00019452,2]
[368300574,1751101842007,-460.0,0.00019452,2]
[368300575,1751101842016,-460.0,0.00019452,2]
[368300576,1751101842026,-460.0,0.00019452,2]
[368300577,1751101842035,-460.0,0.00019452,2]
[368300578,1751101842045,-460.0,0.00019452,2]
[368300579,1751101842054,-460.0,0.00019452,2]
[368300580,1751101842063,-552.07,0.00019452,2]
[368300581,1751101842073,-460.0,0.00019452,2]
[368300582,1751101842082,-865.39,0.00019452,2]
[368300583,1751101842091,-528.96,0.00019452,2]
[368300584,1751101842101,-460.0,0.00019452,2]
[368300585,1751101842111,-2384.46,0.00019452,2]
[368300586,1751101842120,-460.0,0.00019452,2]
[368300587,1751101842129,-903.23,0.00019452,2]
[368300588,1751101842138,-460.0,0.00019452,2]
[368300589,1751101842147,-460.0,0.00019452,2]
[368300590,1751101842159,-460.0,0.00019452,2]
[368300591,1751101842169,-460.0,0.00019452,2]
[368300592,1751101842179,-460.0,0.00019452,2]
[368300593,1751101842188,-2847.7,0.00019452,2]
[368300594,1751101842197,-500.0,0.00019452,2]
[368300595,1751101842206,-684.69,0.00019452,2]
[368300596,1751101842215,-1985.76,0.00019452,2]
[368300597,1751101842224,-460.0,0.00019452,2]
[368300598,1751101842233,-460.0,0.00019452,2]
[368300599,1751101842242,-2316.93,0.00019452,2]
[368300600,1751101842251,-460.0,0.00019452,2]
[368300601,1751101842260,-460.0,0.00019452,2]
[368300602,1751101842269,-460.0,0.00019452,2]
[368300603,1751101842279,-460.0,0.00019452,2]
[368300604,1751101842288,-460.0,0.00019452,2]
[368300605,1751101842297,-460.0,0.00019452,2]
[368300606,1751101842306,-460.0,0.00019452,2]
[368300607,1751101842316,-460.0,0.00019452,2]
[368300608,1751101842325,-460.0,0.00019452,2]
[368300609,1751101842335,-509.86,0.00019452,2]
[368300610,1751101842344,-3306.74,0.00019452,2]
[368300611,1751101842353,-460.0,0.00019452,2]
[368300612,1751101842362,-696.01,0.00019452,2]
[368300613,1751101842372,-460.0,0.00019452,2]
[368300614,1751101842381,-460.0,0.00019452,2]
[368300615,1751101842390,-1354.21,0.00019452,2]
[368300616,1751101842400,-460.0,0.00019452,2]